Workbook

Sheet Title
C1: Calculation practice activities to accompany CHAPTER 11
C3: Social Statistics in Action: A Canadian Introduction
C4: Andrea M. Noack
C6: Oxford University Press, 2018
C8: For more information, visit:
C9: https://www.oupcanada.com/catalog/9780199015214.html

Sheet Regression Predictions
B1: PRACTICE CALCULATING REGRESSION PREDICTIONS (SIMPLE LINEAR REGRESSION)
B3: Use the slope and the constant coefficient to calculate the predicted value on the dependent variable (y), for a case with the value on the independent variable (x) specified in the yellow highlighted cell. Keep two decimal places throughout your calculations. To check your answer, click on the 'Show Answer' button.
B5: Linear Regression Coefficients
B6: Constant Coefficient (a): | C6: 16.41
B7: Slope Coefficient (b): | C7: 8.97
B9: The Case you are Making a Prediction for:
B10: Value on Variable X: | C10: 31.37
B11: Predicted Value on Variable Y: | C11: hidden
B13: Need some help?
B15: REGRESSION PREDICTION CALCULATIONS
B16: Predicted value on variable Y
C17: = 16.41 + (8.97 x 31.37)
C18: = ? + ?
C19: = ?

Sheet Slope & Constant Coefficients
B1: PRACTICE CALCULATING SLOPE AND CONSTANT COEFFICIENTS (SIMPLE LINEAR REGRESSION)
B3: First, calculate the sum of products and the sum of squares X, in order to find the slope coefficient. Then, use the slope coefficient and the variable means to calculate the constant coefficient. Keep two decimal places throughout your calculations. To check your answers, click on the 'Show Slope Coefficient' and/or 'Show Constant Coefficient' buttons.
B6: Case # | C6: Value on Variable X | D6: Value on Variable Y | F6: Means
F7: Mean of Variable X (x-bar): | H7: 12.9
B8: 1 | C8: 4 | D8: 29 | F8: Mean of Variable Y (y-bar): | H8: 20
B9: 2 | C9: 4 | D9: 13
B10: 3 | C10: 29 | D10: 27 | F10: Regression Coefficients
B11: 4 | C11: 2 | D11: 23 | F11: Sum of Products: | H11: hidden
B12: 5 | C12: 29 | D12: 7 | F12: Sum of Squares X: | H12: hidden
B13: 6 | C13: 19 | D13: 29
B14: 7 | C14: 5 | D14: 11 | F14: Slope Coefficient: | H14: hidden
B15: 8 | C15: 8 | D15: 8 | F15: Constant Coefficient: | H15: hidden
B16: 9 | C16: 7 | D16: 29
B17: 10 | C17: 22 | D17: 24 | F17: Need some help?
B21: SUM OF PRODUCTS CALCULATION
B22: Case # | C22: Value on Variable X | D22: Mean of Variable X | E22: (Value-Mean) Variable X | G22: Value on Variable Y | H22: Mean of Variable Y | I22: (Value-Mean) Variable Y | K22: (Value-Mean Variable X) x (Value-Mean Variable Y)
B23: 1 | C23: 4 | D23: 12.9 | E23: 4 - 12.9 = ? | G23: 29 | H23: 20 | I23: 29 - 20 = ? | K23: -8.9 x 9 = ?
B24: 2 | C24: 4 | D24: 12.9 | E24: 4 - 12.9 = ? | G24: 13 | H24: 20 | I24: 13 - 20 = ? | K24: -8.9 x -7 = ?
B25: 3 | C25: 29 | D25: 12.9 | E25: 29 - 12.9 = ? | G25: 27 | H25: 20 | I25: 27 - 20 = ? | K25: 16.1 x 7 = ?
B26: 4 | C26: 2 | D26: 12.9 | E26: 2 - 12.9 = ? | G26: 23 | H26: 20 | I26: 23 - 20 = ? | K26: -10.9 x 3 = ?
B27: 5 | C27: 29 | D27: 12.9 | E27: 29 - 12.9 = ? | G27: 7 | H27: 20 | I27: 7 - 20 = ? | K27: 16.1 x -13 = ?
B28: 6 | C28: 19 | D28: 12.9 | E28: 19 - 12.9 = ? | G28: 29 | H28: 20 | I28: 29 - 20 = ? | K28: 6.1 x 9 = ?
B29: 7 | C29: 5 | D29: 12.9 | E29: 5 - 12.9 = ? | G29: 11 | H29: 20 | I29: 11 - 20 = ? | K29: -7.9 x -9 = ?
B30: 8 | C30: 8 | D30: 12.9 | E30: 8 - 12.9 = ? | G30: 8 | H30: 20 | I30: 8 - 20 = ? | K30: -4.9 x -12 = ?
B31: 9 | C31: 7 | D31: 12.9 | E31: 7 - 12.9 = ? | G31: 29 | H31: 20 | I31: 29 - 20 = ? | K31: -5.9 x 9 = ?
B32: 10 | C32: 22 | D32: 12.9 | E32: 22 - 12.9 = ? | G32: 24 | H32: 20 | I32: 24 - 20 = ? | K32: 9.1 x 4 = ?
J33: Column Sum (Σ) | K33: = ?
B34: SUM OF SQUARES X CALCULATION
B35: Case # | C35: Value of Variable X | D35: Mean of Variable X | E35: (Value-Mean) Variable X | G35: (Value-Mean)2 Variable X
B36: 1 | C36: 4 | D36: 12.9 | E36: 4 - 12.9 = ? | G36: -8.9 x -8.9 = ?
B37: 2 | C37: 4 | D37: 12.9 | E37: 4 - 12.9 = ? | G37: -8.9 x -8.9 = ?
B38: 3 | C38: 29 | D38: 12.9 | E38: 29 - 12.9 = ? | G38: 16.1 x 16.1 = ?
B39: 4 | C39: 2 | D39: 12.9 | E39: 2 - 12.9 = ? | G39: -10.9 x -10.9 = ?
B40: 5 | C40: 29 | D40: 12.9 | E40: 29 - 12.9 = ? | G40: 16.1 x 16.1 = ?
B41: 6 | C41: 19 | D41: 12.9 | E41: 19 - 12.9 = ? | G41: 6.1 x 6.1 = ?
B42: 7 | C42: 5 | D42: 12.9 | E42: 5 - 12.9 = ? | G42: -7.9 x -7.9 = ?
B43: 8 | C43: 8 | D43: 12.9 | E43: 8 - 12.9 = ? | G43: -4.9 x -4.9 = ?
B44: 9 | C44: 7 | D44: 12.9 | E44: 7 - 12.9 = ? | G44: -5.9 x -5.9 = ?
B45: 10 | C45: 22 | D45: 12.9 | E45: 22 - 12.9 = ? | G45: 9.1 x 9.1 = ?
F46: Column Sum (Σ) | G46: = ?
B48: REGRESSION COEFFICIENT CALCULATIONS
B49: Slope Coefficient
D50: = 21 ÷ 1036.9
D51: = ?
B52: Constant Coefficient
D53: = 20 - (0.02 x 12.9)
D54: = ? - ?
D55: = ?

Sheet Standard Errors & T-statistics
B1: PRACTICE CALCULATING STANDARD ERRORS AND T-STATISTICS (SIMPLE LINEAR REGRESSION)
B3: First, use the regression coefficients to calculate the predicted values on Variable Y for each case. Then, calculate the standard error of the estimate, and the standard error of the slope and constant coefficients. Use the standard errors to calculate the T-statistic for the slope and constant coefficients, as well as the degrees of freedom of the t-statistic. Keep two decimal places throughout your calculations. To check your answers, click on the 'Show Standard Errors' and/or 'Show T-Statistics' buttons.
B6: Case # | C6: Value on Variable X | D6: Value on Variable Y | F6: Means
F7: Mean of Variable X (x-bar): | H7: 15.5
B8: 1 | C8: 19 | D8: 19
B9: 2 | C9: 7 | D9: 18 | F9: Regression Coefficients
B10: 3 | C10: 18 | D10: 27 | F10: Slope Coefficient (b): | H10: 0.03
B11: 4 | C11: 30 | D11: 18 | F11: Constant Coefficient (a): | H11: 18.43
B12: 5 | C12: 27 | D12: 25
B13: 6 | C13: 21 | D13: 27 | F13: Standard Errors
B14: 7 | C14: 1 | D14: 27 | F14: Standard Error of the Estimate: | H14: hidden
B15: 8 | C15: 4 | D15: 13 | F15: Standard Error of the Slope Coefficient: | H15: hidden
B16: 9 | C16: 21 | D16: 1 | F16: Standard Error of the Constant Coefficient: | H16: hidden
B17: 10 | C17: 7 | D17: 14
F18: T-Statistics
B19: Need some help? | F19: T-Statistic for the Slope Coefficient: | H19: hidden
F20: T-Statistic for the Constant Coefficient: | H20: hidden
F21: Degrees of Freedom of the T-Statistic: | H21: hidden
F23: If the t-statistic is beyond +/- 2.31 then p<0.05.
B25: PREDICTED VALUES CALCULATIONS
B26: Case # | C26: Value on Variable X | D26: Constant Coefficient | E26: (Slope Coefficient) x (Value on X) | G26: Predicted Value on Variable Y
B27: 1 | C27: 19 | D27: 18.43 | E27: 0.03 x 19 = ? | G27: 18.43 + (0.57) = ?
B28: 2 | C28: 7 | D28: 18.43 | E28: 0.03 x 7 = ? | G28: 18.43 + (0.21) = ?
B29: 3 | C29: 18 | D29: 18.43 | E29: 0.03 x 18 = ? | G29: 18.43 + (0.54) = ?
B30: 4 | C30: 30 | D30: 18.43 | E30: 0.03 x 30 = ? | G30: 18.43 + (0.9) = ?
B31: 5 | C31: 27 | D31: 18.43 | E31: 0.03 x 27 = ? | G31: 18.43 + (0.81) = ?
B32: 6 | C32: 21 | D32: 18.43 | E32: 0.03 x 21 = ? | G32: 18.43 + (0.63) = ?
B33: 7 | C33: 1 | D33: 18.43 | E33: 0.03 x 1 = ? | G33: 18.43 + (0.03) = ?
B34: 8 | C34: 4 | D34: 18.43 | E34: 0.03 x 4 = ? | G34: 18.43 + (0.12) = ?
B35: 9 | C35: 21 | D35: 18.43 | E35: 0.03 x 21 = ? | G35: 18.43 + (0.63) = ?
B36: 10 | C36: 7 | D36: 18.43 | E36: 0.03 x 7 = ? | G36: 18.43 + (0.21) = ?
B38: STANDARD ERROR OF THE ESTIMATE NUMERATOR CALCULATIONS
B39: Case # | C39: Value on Variable Y | D39: Predicted Value on Variable Y | E39: Value - Predicted Value | G39: (Value - Predicted Value)2
B40: 1 | C40: 19 | D40: 19 | E40: 19 - 19 = ? | G40: 0 x 0 = ?
B41: 2 | C41: 18 | D41: 18.64 | E41: 18 - 18.64 = ? | G41: -0.64 x -0.64 = ?
B42: 3 | C42: 27 | D42: 18.97 | E42: 27 - 18.97 = ? | G42: 8.03 x 8.03 = ?
B43: 4 | C43: 18 | D43: 19.33 | E43: 18 - 19.33 = ? | G43: -1.33 x -1.33 = ?
B44: 5 | C44: 25 | D44: 19.24 | E44: 25 - 19.24 = ? | G44: 5.76 x 5.76 = ?
B45: 6 | C45: 27 | D45: 19.06 | E45: 27 - 19.06 = ? | G45: 7.94 x 7.94 = ?
B46: 7 | C46: 27 | D46: 18.46 | E46: 27 - 18.46 = ? | G46: 8.54 x 8.54 = ?
B47: 8 | C47: 13 | D47: 18.55 | E47: 13 - 18.55 = ? | G47: -5.55 x -5.55 = ?
B48: 9 | C48: 1 | D48: 19.06 | E48: 1 - 19.06 = ? | G48: -18.06 x -18.06 = ?
B49: 10 | C49: 14 | D49: 18.64 | E49: 14 - 18.64 = ? | G49: -4.64 x -4.64 = ?
F50: Column Sum (Σ) | G50: = ?
B52: STANDARD ERROR OF THE ESTIMATE CALCULATIONS
B53: Standard Error of the Estimate
D54: = square root of [614.3 ÷ (10-2)]
D55: = square root of (? ÷ ?)
D56: = square root of ?
D57: = ?
B59: SUM OF SQUARES X CALCULATION
B60: Case # | C60: Value on Variable X | D60: Mean of Variable X | E60: (Value-Mean) Variable X | G60: (Value-Mean)2 Variable X
B61: 1 | C61: 19 | D61: 15.5 | E61: 19 - 15.5 = ? | G61: 3.5 x 3.5 = ?
B62: 2 | C62: 7 | D62: 15.5 | E62: 7 - 15.5 = ? | G62: -8.5 x -8.5 = ?
B63: 3 | C63: 18 | D63: 15.5 | E63: 18 - 15.5 = ? | G63: 2.5 x 2.5 = ?
B64: 4 | C64: 30 | D64: 15.5 | E64: 30 - 15.5 = ? | G64: 14.5 x 14.5 = ?
B65: 5 | C65: 27 | D65: 15.5 | E65: 27 - 15.5 = ? | G65: 11.5 x 11.5 = ?
B66: 6 | C66: 21 | D66: 15.5 | E66: 21 - 15.5 = ? | G66: 5.5 x 5.5 = ?
B67: 7 | C67: 1 | D67: 15.5 | E67: 1 - 15.5 = ? | G67: -14.5 x -14.5 = ?
B68: 8 | C68: 4 | D68: 15.5 | E68: 4 - 15.5 = ? | G68: -11.5 x -11.5 = ?
B69: 9 | C69: 21 | D69: 15.5 | E69: 21 - 15.5 = ? | G69: 5.5 x 5.5 = ?
B70: 10 | C70: 7 | D70: 15.5 | E70: 7 - 15.5 = ? | G70: -8.5 x -8.5 = ?
F71: Column Sum (Σ) | G71: = ?
B73: STANDARD ERROR OF THE SLOPE & CONSTANT COEFFICIENT CALCULATIONS
B74: Standard error of the slope coefficient (seb)
D75: = 8.76 ÷ (square root of 908.5)
D76: = ? ÷ ?
D77: = ?
B78: Standard error of the constant coefficient (sea)
D79: = 8.76 x square root of [(1 ÷ 10) + (15.5² ÷ 908.5)]
D80: = ? x square root of [(? ÷ ?) + (? ÷ ?)]
D81: = ? x square root of (? + ?)
D82: = ? x square root of ?
D83: = ? x ?
D84: = ?
B86: T-STATISTIC CALCULATIONS
B87: T-Statistic for the slope coefficient
D88: = 0.03 ÷ 0.29
D89: = ?
B90: T-Statistic for the constant coefficient
D91: = 18.43 ÷ 5.26
D92: = ?
B93: Degrees of freedom for regression coefficients
D94: = 10 - 1 - 1
D95: = ?

Sheet R-Squared
B1: PRACTICE CALCULATING R-SQUARED (SIMPLE LINEAR REGRESSION)
B3: First, use the regression coefficients to calculate the predicted values on Variable Y for each case. Then, calculate R-squared. Keep two decimal places throughout your calculations. To check your answer, click on the 'Show Answer' button.
B6: Case # | C6: Value on Variable X | D6: Value on Variable Y | F6: Regression Coefficients
F7: Slope Coefficient (a): | H7: 0.96
B8: 1 | C8: 4 | D8: 3 | F8: Constant Coefficient (b): | H8: 4.26
B9: 2 | C9: 17 | D9: 30
B10: 3 | C10: 19 | D10: 20 | F10: Means
B11: 4 | C11: 1 | D11: 4 | F11: Mean of Variable Y (y-bar): | H11: 17.7
B12: 5 | C12: 16 | D12: 26
B13: 6 | C13: 2 | D13: 9 | F13: Coefficient of Determination
B14: 7 | C14: 15 | D14: 12 | F14: R-Squared: | H14: hidden
B15: 8 | C15: 17 | D15: 24
B16: 9 | C16: 24 | D16: 20 | F16: Need some help?
B17: 10 | C17: 25 | D17: 29
B19: PREDICTED VALUES CALCULATIONS
B20: Case # | C20: Value on Variable X | D20: Constant Coefficient | E20: (Slope Coefficient) x (Value on X) | G20: Predicted Value on Variable Y
B21: 1 | C21: 4 | D21: 4.26 | E21: 0.96 x 4 = ? | G21: 4.26 + (3.84) = ?
B22: 2 | C22: 17 | D22: 4.26 | E22: 0.96 x 17 = ? | G22: 4.26 + (16.32) = ?
B23: 3 | C23: 19 | D23: 4.26 | E23: 0.96 x 19 = ? | G23: 4.26 + (18.24) = ?
B24: 4 | C24: 1 | D24: 4.26 | E24: 0.96 x 1 = ? | G24: 4.26 + (0.96) = ?
B25: 5 | C25: 16 | D25: 4.26 | E25: 0.96 x 16 = ? | G25: 4.26 + (15.36) = ?
B26: 6 | C26: 2 | D26: 4.26 | E26: 0.96 x 2 = ? | G26: 4.26 + (1.92) = ?
B27: 7 | C27: 15 | D27: 4.26 | E27: 0.96 x 15 = ? | G27: 4.26 + (14.4) = ?
B28: 8 | C28: 17 | D28: 4.26 | E28: 0.96 x 17 = ? | G28: 4.26 + (16.32) = ?
B29: 9 | C29: 24 | D29: 4.26 | E29: 0.96 x 24 = ? | G29: 4.26 + (23.04) = ?
B30: 10 | C30: 25 | D30: 4.26 | E30: 0.96 x 25 = ? | G30: 4.26 + (24) = ?
B32: R2 NUMERATOR CALCULATION (EXPLAINED VARIATION)
B33: Case # | C33: Predicted Value on Variable Y | D33: Mean of Variable Y | E33: Predicted Value - Mean | G33: (Predicted Value - Mean)2
B34: 1 | C34: 8.1 | D34: 17.7 | E34: 8.1 - 17.7 = ? | G34: -9.6 x -9.6 = ?
B35: 2 | C35: 20.58 | D35: 17.7 | E35: 20.58 - 17.7 = ? | G35: 2.88 x 2.88 = ?
B36: 3 | C36: 22.5 | D36: 17.7 | E36: 22.5 - 17.7 = ? | G36: 4.8 x 4.8 = ?
B37: 4 | C37: 5.22 | D37: 17.7 | E37: 5.22 - 17.7 = ? | G37: -12.48 x -12.48 = ?
B38: 5 | C38: 19.62 | D38: 17.7 | E38: 19.62 - 17.7 = ? | G38: 1.92 x 1.92 = ?
B39: 6 | C39: 6.18 | D39: 17.7 | E39: 6.18 - 17.7 = ? | G39: -11.52 x -11.52 = ?
B40: 7 | C40: 18.66 | D40: 17.7 | E40: 18.66 - 17.7 = ? | G40: 0.96 x 0.96 = ?
B41: 8 | C41: 20.58 | D41: 17.7 | E41: 20.58 - 17.7 = ? | G41: 2.88 x 2.88 = ?
B42: 9 | C42: 27.3 | D42: 17.7 | E42: 27.3 - 17.7 = ? | G42: 9.6 x 9.6 = ?
B43: 10 | C43: 28.26 | D43: 17.7 | E43: 28.26 - 17.7 = ? | G43: 10.56 x 10.56 = ?
F44: Column Sum (Σ) | G44: = ?
B46: R2 DENOMINATOR CALCULATION (TOTAL VARIATION)
B47: Case # | C47: Value on Variable Y | D47: Mean of Variable Y | E47: Value - Mean | G47: (Value - Mean)2
B48: 1 | C48: 3 | D48: 17.7 | E48: 3 - 17.7 = ? | G48: -14.7 x -14.7 = ?
B49: 2 | C49: 30 | D49: 17.7 | E49: 30 - 17.7 = ? | G49: 12.3 x 12.3 = ?
B50: 3 | C50: 20 | D50: 17.7 | E50: 20 - 17.7 = ? | G50: 2.3 x 2.3 = ?
B51: 4 | C51: 4 | D51: 17.7 | E51: 4 - 17.7 = ? | G51: -13.7 x -13.7 = ?
B52: 5 | C52: 26 | D52: 17.7 | E52: 26 - 17.7 = ? | G52: 8.3 x 8.3 = ?
B53: 6 | C53: 9 | D53: 17.7 | E53: 9 - 17.7 = ? | G53: -8.7 x -8.7 = ?
B54: 7 | C54: 12 | D54: 17.7 | E54: 12 - 17.7 = ? | G54: -5.7 x -5.7 = ?
B55: 8 | C55: 24 | D55: 17.7 | E55: 24 - 17.7 = ? | G55: 6.3 x 6.3 = ?
B56: 9 | C56: 20 | D56: 17.7 | E56: 20 - 17.7 = ? | G56: 2.3 x 2.3 = ?
B57: 10 | C57: 29 | D57: 17.7 | E57: 29 - 17.7 = ? | G57: 11.3 x 11.3 = ?
F58: Column Sum (Σ) | G58: = ?
B60: R-SQUARED CALCULATIONS
B61: R-Squared
D62: = 628.52 ÷ 910.1
D63: = ?

Sheet Regression Predictions-A (hidden)
B1: PRACTICE CALCULATING REGRESSION PREDICTIONS (SIMPLE LINEAR REGRESSION)
B5: Linear Regression Coefficients
A6: =RANDBETWEEN(100,5000)/100 -> 44.27 | B6: Constant Coefficient (a) | C6: 16.41
A7: =RANDBETWEEN(100,1000)/100 -> 9.48 | B7: Slope Coefficient (b) | C7: 8.97
B9: The Case you are Making Predictions for
A10: =RANDBETWEEN(100,5000)/100 -> 12.32 | B10: Value on Variable X | C10: 31.37
B11: Predicted Value on Variable Y | C11: =D19 -> 297.8
B13: Need some help?
B15: REGRESSION PREDICTION CALCULATIONS
B16: Predicted value on variable Y | C16: FORMULA
C17: =CONCATENATE("'= ",C6," + (",C7," x ",C10,")") -> '= 16.41 + (8.97 x 31.37)
C18: =CONCATENATE("'= ",C6," + ",D18) -> '= 16.41 + 281.39 | D18: =ROUND(C10*C7,2) -> 281.39
C19: =CONCATENATE("'= ",D19) -> '= 297.8 | D19: =C6+D18 -> 297.8

Sheet Slope & Constant-A (hidden)
B1: PRACTICE CALCULATING SLOPE AND CONSTANT COEFFICIENTS (SIMPLE LINEAR REGRESSION)
B6: Case # | C6: Value of Variable X | D6: Value of Variable Y | F6: Means
F7: Mean of Variable X | H7: =ROUND(AVERAGE(C8:C17),2) -> 12.9
B8: 1 | C8: 4 | D8: 29 | F8: Mean of Variable Y | H8: =ROUND(AVERAGE(D8:D17),2) -> 20 | J8: =RANDBETWEEN(1,30) -> 12 | K8: =RANDBETWEEN(1,30) -> 29
B9: 2 | C9: 4 | D9: 13 | J9: =RANDBETWEEN(1,30) -> 11 | K9: 27
B10: 3 | C10: 29 | D10: 27 | F10: Regression Coefficients | J10: 30 | K10: 29
B11: 4 | C11: 2 | D11: 23 | F11: Sum of Products | H11: =$N$33 -> 21 | J11: 29 | K11: 9
B12: 5 | C12: 29 | D12: 7 | F12: Sum of Squares X | H12: =$J$46 -> 1036.9 | J12: 25 | K12: 20
B13: 6 | C13: 19 | D13: 29 | J13: 23 | K13: 12
B14: 7 | C14: 5 | D14: 11 | F14: Slope Coefficient | H14: =$F$51 -> 0.02 | J14: 12 | K14: 4
B15: 8 | C15: 8 | D15: 8 | F15: Constant Coefficient | H15: =$F$55 -> 19.74 | J15: 10 | K15: 25
B16: 9 | C16: 7 | D16: 29 | J16: 2 | K16: 1
B17: 10 | C17: 22 | D17: 24 | F17: Need some help? | J17: 14 | K17: 18
B21: SUM OF PRODUCTS CALCULATION
B22: Case # | C22: Value of Variable X | D22: Mean of Variable X | E22: (Value-Mean) Variable X | G22: Value of Variable Y | H22: Mean of Variable Y | I22: (Value-Mean) Variable Y | K22: (Value-Mean Variable X) x (Value-Mean Variable Y)
B23: 1 | C23: =C8 -> 4 | D23: =$H$7 -> 12.9 | E23: =CONCATENATE(C23," - ",D23," = ",L23) -> 4 - 12.9 = -8.9 | G23: =D8 -> 29 | H23: =$H$8 -> 20 | I23: =CONCATENATE(G23," - ",H23," = ",M23) -> 29 - 20 = 9 | K23: =CONCATENATE(L23," x ",M23," = ",N23) -> -8.9 x 9 = -80.1 | L23: =ROUND(C23-D23,2) -> -8.9 | M23: =ROUND(G23-H23,2) -> 9 | N23: =ROUND(L23*M23,2) -> -80.1 | P23: =CONCATENATE(C23," - ",D23," = ?") -> 4 - 12.9 = ? | R23: =CONCATENATE(G23," - ",H23," = ?") -> 29 - 20 = ? | T23: =CONCATENATE(L23," x ",M23," = ?") -> -8.9 x 9 = ?
B24: 2 | C24: 4 | D24: =$H$7 -> 12.9 | E24: =CONCATENATE(C24," - ",D24," = ",L24) -> 4 - 12.9 = -8.9 | G24: 13 | H24: =$H$8 -> 20 | I24: =CONCATENATE(G24," - ",H24," = ",M24) -> 13 - 20 = -7 | K24: =CONCATENATE(L24," x ",M24," = ",N24) -> -8.9 x -7 = 62.3 | L24: =ROUND(C24-D24,2) -> -8.9 | M24: =ROUND(G24-H24,2) -> -7 | N24: =ROUND(L24*M24,2) -> 62.3 | P24: =CONCATENATE(C24," - ",D24," = ?") -> 4 - 12.9 = ? | R24: =CONCATENATE(G24," - ",H24," = ?") -> 13 - 20 = ? | T24: =CONCATENATE(L24," x ",M24," = ?") -> -8.9 x -7 = ?
B25: 3 | C25: 29 | D25: 12.9 | E25: 29 - 12.9 = 16.1 | G25: 27 | H25: 20 | I25: 27 - 20 = 7 | K25: 16.1 x 7 = 112.7 | L25: 16.1 | M25: 7 | N25: 112.7 | P25: 29 - 12.9 = ? | R25: 27 - 20 = ? | T25: 16.1 x 7 = ?
B26: 4 | C26: 2 | D26: 12.9 | E26: 2 - 12.9 = -10.9 | G26: 23 | H26: 20 | I26: 23 - 20 = 3 | K26: -10.9 x 3 = -32.7 | L26: -10.9 | M26: 3 | N26: -32.7 | P26: 2 - 12.9 = ? | R26: 23 - 20 = ? | T26: -10.9 x 3 = ?
B27: 5 | C27: 29 | D27: 12.9 | E27: 29 - 12.9 = 16.1 | G27: 7 | H27: 20 | I27: 7 - 20 = -13 | K27: 16.1 x -13 = -209.3 | L27: 16.1 | M27: -13 | N27: -209.3 | P27: 29 - 12.9 = ? | R27: 7 - 20 = ? | T27: 16.1 x -13 = ?
B28: 6 | C28: 19 | D28: 12.9 | E28: 19 - 12.9 = 6.1 | G28: 29 | H28: 20 | I28: 29 - 20 = 9 | K28: 6.1 x 9 = 54.9 | L28: 6.1 | M28: 9 | N28: 54.9 | P28: 19 - 12.9 = ? | R28: 29 - 20 = ? | T28: 6.1 x 9 = ?
B29: 7 | C29: 5 | D29: 12.9 | E29: 5 - 12.9 = -7.9 | G29: 11 | H29: 20 | I29: 11 - 20 = -9 | K29: -7.9 x -9 = 71.1 | L29: -7.9 | M29: -9 | N29: 71.1 | P29: 5 - 12.9 = ? | R29: 11 - 20 = ? | T29: -7.9 x -9 = ?
B30: 8 | C30: 8 | D30: 12.9 | E30: 8 - 12.9 = -4.9 | G30: 8 | H30: 20 | I30: 8 - 20 = -12 | K30: -4.9 x -12 = 58.8 | L30: -4.9 | M30: -12 | N30: 58.8 | P30: 8 - 12.9 = ? | R30: 8 - 20 = ? | T30: -4.9 x -12 = ?
B31: 9 | C31: 7 | D31: 12.9 | E31: 7 - 12.9 = -5.9 | G31: 29 | H31: 20 | I31: 29 - 20 = 9 | K31: -5.9 x 9 = -53.1 | L31: -5.9 | M31: 9 | N31: -53.1 | P31: 7 - 12.9 = ? | R31: 29 - 20 = ? | T31: -5.9 x 9 = ?
B32: 10 | C32: 22 | D32: 12.9 | E32: 22 - 12.9 = 9.1 | G32: 24 | H32: 20 | I32: 24 - 20 = 4 | K32: 9.1 x 4 = 36.4 | L32: 9.1 | M32: 4 | N32: 36.4 | P32: 22 - 12.9 = ? | R32: 24 - 20 = ? | T32: 9.1 x 4 = ?
J33: Column Sum (Σ) | K33: =CONCATENATE("'= ",N33) -> '= 21 | N33: =ROUND(SUM(N23:N32),2) -> 21
B34: SUM OF SQUARES X CALCULATION
B35: Case # | C35: Value of Variable X | D35: Mean of Variable X | E35: (Value-Mean) Variable X | G35: (Value-Mean)2 Variable X
B36: 1 | C36: =C8 -> 4 | D36: =$H$7 -> 12.9 | E36: =CONCATENATE(C36," - ",D36," = ",H36) -> 4 - 12.9 = -8.9 | G36: =CONCATENATE(H36," x ",H36," = ",I36) -> -8.9 x -8.9 = 79.21 | H36: =ROUND(C36-D36,2) -> -8.9 | I36: =ROUND(H36*H36,2) -> 79.21 | P36: =CONCATENATE(C36," - ",D36," = ?") -> 4 - 12.9 = ? | R36: =CONCATENATE(H36," x ",H36," = ?") -> -8.9 x -8.9 = ?
B37: 2 | C37: 4 | D37: =$H$7 -> 12.9 | E37: =CONCATENATE(C37," - ",D37," = ",H37) -> 4 - 12.9 = -8.9 | G37: =CONCATENATE(H37," x ",H37," = ",I37) -> -8.9 x -8.9 = 79.21 | H37: =ROUND(C37-D37,2) -> -8.9 | I37: =ROUND(H37*H37,2) -> 79.21 | P37: 4 - 12.9 = ? | R37: =CONCATENATE(H37," x ",H37," = ?") -> -8.9 x -8.9 = ?
B38: 3 | C38: 29 | D38: 12.9 | E38: 29 - 12.9 = 16.1 | G38: 16.1 x 16.1 = 259.21 | H38: 16.1 | I38: 259.21 | P38: 29 - 12.9 = ? | R38: 16.1 x 16.1 = ?
B39: 4 | C39: 2 | D39: 12.9 | E39: 2 - 12.9 = -10.9 | G39: -10.9 x -10.9 = 118.81 | H39: -10.9 | I39: 118.81 | P39: 2 - 12.9 = ? | R39: -10.9 x -10.9 = ?
B40: 5 | C40: 29 | D40: 12.9 | E40: 29 - 12.9 = 16.1 | G40: 16.1 x 16.1 = 259.21 | H40: 16.1 | I40: 259.21 | P40: 29 - 12.9 = ? | R40: 16.1 x 16.1 = ?
B41: 6 | C41: 19 | D41: 12.9 | E41: 19 - 12.9 = 6.1 | G41: 6.1 x 6.1 = 37.21 | H41: 6.1 | I41: 37.21 | P41: 19 - 12.9 = ? | R41: 6.1 x 6.1 = ?
B42: 7 | C42: 5 | D42: 12.9 | E42: 5 - 12.9 = -7.9 | G42: -7.9 x -7.9 = 62.41 | H42: -7.9 | I42: 62.41 | P42: 5 - 12.9 = ? | R42: -7.9 x -7.9 = ?
B43: 8 | C43: 8 | D43: 12.9 | E43: 8 - 12.9 = -4.9 | G43: -4.9 x -4.9 = 24.01 | H43: -4.9 | I43: 24.01 | P43: 8 - 12.9 = ? | R43: -4.9 x -4.9 = ?
B44: 9 | C44: 7 | D44: 12.9 | E44: 7 - 12.9 = -5.9 | G44: -5.9 x -5.9 = 34.81 | H44: -5.9 | I44: 34.81 | P44: 7 - 12.9 = ? | R44: -5.9 x -5.9 = ?
B45: 10 | C45: 22 | D45: 12.9 | E45: 22 - 12.9 = 9.1 | G45: 9.1 x 9.1 = 82.81 | H45: 9.1 | I45: 82.81 | P45: 22 - 12.9 = ? | R45: 9.1 x 9.1 = ?
F46: Column Sum (Σ) | G46: =CONCATENATE("'= ",J46) -> '= 1036.9 | J46: =ROUND(SUM(I36:J45),2) -> 1036.9
B48: REGRESSION COEFFICIENT CALCULATIONS
B49: Slope Coefficient
D50: =CONCATENATE("'= ",N33," ÷ ",J46) -> '= 21 ÷ 1036.9
D51: =CONCATENATE("'= ",F51) -> '= 0.02 | F51: =ROUND(N33/J46,2) -> 0.02
B52: Constant Coefficient
D53: =CONCATENATE("'= ",H8," - (",F51," x ",H7,")") -> '= 20 - (0.02 x 12.9)
D54: =CONCATENATE("'= ",H8," - (",F54,")") -> '= 20 - (0.26) | F54: =ROUND(F51*H7,2) -> 0.26
D55: =CONCATENATE("'= ",F55) -> '= 19.74 | F55: =ROUND(H8-F54,2) -> 19.74

Sheet Standard Errors & T-stat-A (hidden)
B1: PRACTICE CALCULATING STANDARD ERRORS AND T-STATISTICS (SIMPLE LINEAR REGRESSION)
B6: Case # | C6: Value on Variable X | D6: Value on Variable Y | F6: Means
F7: Mean of Variable X | H7: =ROUND(AVERAGE(C8:C17),2) -> 15.5
B8: 1 | C8: 19 | D8: 19 | I8: =ROUND(C8-$H$7,2) -> 3.5 | J8: =ROUND(I8*I8,2) -> 12.25 | K8: =ROUND(D8-$D$18,2) -> 0.1 | L8: =ROUND(I8*K8,2) -> 0.35 | N8: =RANDBETWEEN(1,30) -> 18 | O8: =RANDBETWEEN(1,30) -> 6
B9: 2 | C9: 7 | D9: 18 | F9: Regression Coefficients | I9: =ROUND(C9-$H$7,2) -> -8.5 | J9: =ROUND(I9*I9,2) -> 72.25 | K9: =ROUND(D9-$D$18,2) -> -0.9 | L9: =ROUND(I9*K9,2) -> 7.65 | N9: =RANDBETWEEN(1,30) -> 11 | O9: 16
B10: 3 | C10: 18 | D10: 27 | F10: Slope Coefficient | H10: =L19 -> 0.03 | I10: 2.5 | J10: 6.25 | K10: 8.1 | L10: 20.25 | N10: 26 | O10: 12
B11: 4 | C11: 30 | D11: 18 | F11: Constant Coefficient | H11: =L20 -> 18.43 | I11: 14.5 | J11: 210.25 | K11: -0.9 | L11: -13.05 | N11: 26 | O11: 2
B12: 5 | C12: 27 | D12: 25 | I12: 11.5 | J12: 132.25 | K12: 6.1 | L12: 70.15 | N12: 28 | O12: 25
B13: 6 | C13: 21 | D13: 27 | F13: Standard Errors | I13: 5.5 | J13: 30.25 | K13: 8.1 | L13: 44.55 | N13: 15 | O13: 8
B14: 7 | C14: 1 | D14: 27 | F14: Standard Error of the Estimate | H14: =G57 -> 8.76 | I14: -14.5 | J14: 210.25 | K14: 8.1 | L14: -117.45 | N14: 15 | O14: 26
B15: 8 | C15: 4 | D15: 13 | F15: Standard Error of the Slope Coefficient | H15: =G77 -> 0.29 | I15: -11.5 | J15: 132.25 | K15: -5.9 | L15: 67.85 | N15: 10 | O15: 1
B16: 9 | C16: 21 | D16: 1 | F16: Standard Error of the Constant Coefficient | H16: =G84 -> 5.26 | I16: 5.5 | J16: 30.25 | K16: -17.9 | L16: -98.45 | N16: 3 | O16: 4
B17: 10 | C17: 7 | D17: 14 | I17: -8.5 | J17: 72.25 | K17: -4.9 | L17: 41.65 | N17: 9 | O17: 26
D18: =ROUND(AVERAGE(D8:D17),2) -> 18.9 | F18: T-Statistics | J18: =SUM(J8:J17) -> 908.5 | L18: =SUM(L8:L17) -> 23.5
B19: Need some help? | F19: T-Statistic for the Slope Coefficient | H19: =G89 -> 0.1 | L19: =ROUND(L18/J18,2) -> 0.03
F20: T-Statistic for the Constant Coefficient | H20: =G92 -> 3.5 | K20: =ROUND(L19*H7,2) -> 0.47 | L20: =ROUND($D$18-K20,2) -> 18.43
F21: Degrees of Freedom of the T-Statistic | H21: =8 -> 8
B25: PREDICTED VALUES CALCULATIONS
B26: Case # | C26: Value on Variable X | D26: Constant Coefficient | E26: (Slope Coefficient) x (Value on X) | G26: Predicted Value on Variable Y
B27: 1 | C27: =C8 -> 19 | D27: =$H$11 -> 18.43 | E27: =CONCATENATE($H$10," x ",C27," = ",H27) -> 0.03 x 19 = 0.57 | G27: =CONCATENATE(D27," + (",H27,") = ",I27) -> 18.43 + (0.57) = 19 | H27: =ROUND(C27*$H$10,2) -> 0.57 | I27: =ROUND(SUM(D27,H27),2) -> 19 | K27: =CONCATENATE($H$10," x ",C27," = ?") -> 0.03 x 19 = ? | M27: =CONCATENATE(D27," + (",H27,") = ?") -> 18.43 + (0.57) = ?
B28: 2 | C28: 7 | D28: 18.43 | E28: 0.03 x 7 = 0.21 | G28: =CONCATENATE(D28," + (",H28,") = ",I28) -> 18.43 + (0.21) = 18.64 | H28: 0.21 | I28: =ROUND(SUM(D28,H28),2) -> 18.64 | K28: 0.03 x 7 = ? | M28: 18.43 + (0.21) = ?
B29: 3 | C29: 18 | D29: 18.43 | E29: 0.03 x 18 = 0.54 | G29: 18.43 + (0.54) = 18.97 | H29: 0.54 | I29: 18.97 | K29: 0.03 x 18 = ? | M29: 18.43 + (0.54) = ?
B30: 4 | C30: 30 | D30: 18.43 | E30: 0.03 x 30 = 0.9 | G30: 18.43 + (0.9) = 19.33 | H30: 0.9 | I30: 19.33 | K30: 0.03 x 30 = ? | M30: 18.43 + (0.9) = ?
B31: 5 | C31: 27 | D31: 18.43 | E31: 0.03 x 27 = 0.81 | G31: 18.43 + (0.81) = 19.24 | H31: 0.81 | I31: 19.24 | K31: 0.03 x 27 = ? | M31: 18.43 + (0.81) = ?
B32: 6 | C32: 21 | D32: 18.43 | E32: 0.03 x 21 = 0.63 | G32: 18.43 + (0.63) = 19.06 | H32: 0.63 | I32: 19.06 | K32: 0.03 x 21 = ? | M32: 18.43 + (0.63) = ?
B33: 7 | C33: 1 | D33: 18.43 | E33: 0.03 x 1 = 0.03 | G33: 18.43 + (0.03) = 18.46 | H33: 0.03 | I33: 18.46 | K33: 0.03 x 1 = ? | M33: 18.43 + (0.03) = ?
B34: 8 | C34: 4 | D34: 18.43 | E34: 0.03 x 4 = 0.12 | G34: 18.43 + (0.12) = 18.55 | H34: 0.12 | I34: 18.55 | K34: 0.03 x 4 = ? | M34: 18.43 + (0.12) = ?
B35: 9 | C35: 21 | D35: 18.43 | E35: 0.03 x 21 = 0.63 | G35: 18.43 + (0.63) = 19.06 | H35: 0.63 | I35: 19.06 | K35: 0.03 x 21 = ? | M35: 18.43 + (0.63) = ?
B36: 10 | C36: 7 | D36: 18.43 | E36: 0.03 x 7 = 0.21 | G36: 18.43 + (0.21) = 18.64 | H36: 0.21 | I36: 18.64 | K36: 0.03 x 7 = ? | M36: 18.43 + (0.21) = ?
B38: STANDARD ERROR OF THE ESTIMATE NUMERATOR CALCULATIONS
B39: Case # | C39: Value on Variable Y | D39: Predicted Value on Variable Y | E39: Value - Predicted Value | G39: (Value - Predicted Value)2
B40: 1 | C40: =D8 -> 19 | D40: =I27 -> 19 | E40: =CONCATENATE(C40," - (",D40,") = ",H40) -> 19 - (19) = 0 | G40: =CONCATENATE(H40," x ",H40," = ",I40) -> 0 x 0 = 0 | H40: =ROUND(C40-D40,2) -> 0 | I40: =ROUND(H40*H40,2) -> 0 | K40: =CONCATENATE(C40," - ",D40," = ?") -> 19 - 19 = ? | M40: =CONCATENATE(H40," x ",H40," = ?") -> 0 x 0 = ?
B41: 2 | C41: 18 | D41: =I28 -> 18.64 | E41: =CONCATENATE(C41," - (",D41,") = ",H41) -> 18 - (18.64) = -0.64 | G41: =CONCATENATE(H41," x ",H41," = ",I41) -> -0.64 x -0.64 = 0.41 | H41: =ROUND(C41-D41,2) -> -0.64 | I41: =ROUND(H41*H41,2) -> 0.41 | K41: =CONCATENATE(C41," - ",D41," = ?") -> 18 - 18.64 = ? | M41: =CONCATENATE(H41," x ",H41," = ?") -> -0.64 x -0.64 = ?
B42: 3 | C42: 27 | D42: 18.97 | E42: 27 - (18.97) = 8.03 | G42: 8.03 x 8.03 = 64.48 | H42: 8.03 | I42: 64.48 | K42: 27 - 18.97 = ? | M42: 8.03 x 8.03 = ?
B43: 4 | C43: 18 | D43: 19.33 | E43: 18 - (19.33) = -1.33 | G43: -1.33 x -1.33 = 1.77 | H43: -1.33 | I43: 1.77 | K43: 18 - 19.33 = ? | M43: -1.33 x -1.33 = ?
B44: 5 | C44: 25 | D44: 19.24 | E44: 25 - (19.24) = 5.76 | G44: 5.76 x 5.76 = 33.18 | H44: 5.76 | I44: 33.18 | K44: 25 - 19.24 = ? | M44: 5.76 x 5.76 = ?
B45: 6 | C45: 27 | D45: 19.06 | E45: 27 - (19.06) = 7.94 | G45: 7.94 x 7.94 = 63.04 | H45: 7.94 | I45: 63.04 | K45: 27 - 19.06 = ? | M45: 7.94 x 7.94 = ?
B46: 7 | C46: 27 | D46: 18.46 | E46: 27 - (18.46) = 8.54 | G46: 8.54 x 8.54 = 72.93 | H46: 8.54 | I46: 72.93 | K46: 27 - 18.46 = ? | M46: 8.54 x 8.54 = ?
B47: 8 | C47: 13 | D47: 18.55 | E47: 13 - (18.55) = -5.55 | G47: -5.55 x -5.55 = 30.8 | H47: -5.55 | I47: 30.8 | K47: 13 - 18.55 = ? | M47: -5.55 x -5.55 = ?
B48: 9 | C48: 1 | D48: 19.06 | E48: 1 - (19.06) = -18.06 | G48: -18.06 x -18.06 = 326.16 | H48: -18.06 | I48: 326.16 | K48: 1 - 19.06 = ? | M48: -18.06 x -18.06 = ?
B49: 10 | C49: 14 | D49: 18.64 | E49: 14 - (18.64) = -4.64 | G49: -4.64 x -4.64 = 21.53 | H49: -4.64 | I49: 21.53 | K49: 14 - 18.64 = ? | M49: -4.64 x -4.64 = ?
F50: Column Sum (Σ) | G50: =CONCATENATE("'= ",J50) -> '= 614.3 | J50: =ROUND(SUM(I40:J49),2) -> 614.3
B52: STANDARD ERROR OF THE ESTIMATE CALCULATIONS
B53: Standard Error of the Estimate
D54: =CONCATENATE("'= square root of [",J50," ÷ (10-2)]") -> '= square root of [614.3 ÷ (10-2)]
D55: =CONCATENATE("'= square root of (",J50," ÷ 8)") -> '= square root of (614.3 ÷ 8)
D56: =CONCATENATE("'= square root of ",G56) -> '= square root of 76.79 | G56: =ROUND(J50/8,2) -> 76.79
D57: =CONCATENATE("'= ",G57) -> '= 8.76 | G57: =ROUND(SQRT(G56),2) -> 8.76
B59: SUM OF SQUARES X CALCULATION
B60: Case # | C60: Value on Variable X | D60: Mean of Variable X | E60: (Value-Mean) Variable X | G60: (Value-Mean)2 Variable X
B61: 1 | C61: =C8 -> 19 | D61: =$H$7 -> 15.5 | E61: =CONCATENATE(C61," - ",D61," = ",H61) -> 19 - 15.5 = 3.5 | G61: =CONCATENATE(H61," x ",H61," = ",I61) -> 3.5 x 3.5 = 12.25 | H61: =ROUND(C61-D61,2) -> 3.5 | I61: =ROUND(H61*H61,2) -> 12.25 | K61: =CONCATENATE(C61," - ",D61," = ?") -> 19 - 15.5 = ? | M61: =CONCATENATE(H61," x ",H61," = ?") -> 3.5 x 3.5 = ? | R61: =CONCATENATE(H61," x ",H61," = ?") -> 3.5 x 3.5 = ?
B62: 2 | C62: 7 | D62: =$H$7 -> 15.5 | E62: =CONCATENATE(C62," - ",D62," = ",H62) -> 7 - 15.5 = -8.5 | G62: =CONCATENATE(H62," x ",H62," = ",I62) -> -8.5 x -8.5 = 72.25 | H62: =ROUND(C62-D62,2) -> -8.5 | I62: =ROUND(H62*H62,2) -> 72.25 | K62: =CONCATENATE(C62," - ",D62," = ?") -> 7 - 15.5 = ? | M62: -8.5 x -8.5 = ?
B63: 3 | C63: 18 | D63: 15.5 | E63: 18 - 15.5 = 2.5 | G63: 2.5 x 2.5 = 6.25 | H63: 2.5 | I63: 6.25 | K63: 18 - 15.5 = ? | M63: 2.5 x 2.5 = ?
B64: 4 | C64: 30 | D64: 15.5 | E64: 30 - 15.5 = 14.5 | G64: 14.5 x 14.5 = 210.25 | H64: 14.5 | I64: 210.25 | K64: 30 - 15.5 = ? | M64: 14.5 x 14.5 = ?
B65: 5 | C65: 27 | D65: 15.5 | E65: 27 - 15.5 = 11.5 | G65: 11.5 x 11.5 = 132.25 | H65: 11.5 | I65: 132.25 | K65: 27 - 15.5 = ? | M65: 11.5 x 11.5 = ?
B66: 6 | C66: 21 | D66: 15.5 | E66: 21 - 15.5 = 5.5 | G66: 5.5 x 5.5 = 30.25 | H66: 5.5 | I66: 30.25 | K66: 21 - 15.5 = ? | M66: 5.5 x 5.5 = ?
B67: 7 | C67: 1 | D67: 15.5 | E67: 1 - 15.5 = -14.5 | G67: -14.5 x -14.5 = 210.25 | H67: -14.5 | I67: 210.25 | K67: 1 - 15.5 = ? | M67: -14.5 x -14.5 = ?
B68: 8 | C68: 4 | D68: 15.5 | E68: 4 - 15.5 = -11.5 | G68: -11.5 x -11.5 = 132.25 | H68: -11.5 | I68: 132.25 | K68: 4 - 15.5 = ? | M68: -11.5 x -11.5 = ?
B69: 9 | C69: 21 | D69: 15.5 | E69: 21 - 15.5 = 5.5 | G69: 5.5 x 5.5 = 30.25 | H69: 5.5 | I69: 30.25 | K69: 21 - 15.5 = ? | M69: 5.5 x 5.5 = ?
B70: 10 | C70: 7 | D70: 15.5 | E70: 7 - 15.5 = -8.5 | G70: -8.5 x -8.5 = 72.25 | H70: -8.5 | I70: 72.25 | K70: 7 - 15.5 = ? | M70: -8.5 x -8.5 = ?
F71: Column Sum (Σ) | G71: =CONCATENATE("'= ",J71) -> '= 908.5 | J71: =ROUND(SUM(I61:J70),2) -> 908.5
B73: STANDARD ERROR OF THE SLOPE & CONSTANT COEFFICIENT CALCULATIONS
B74: Standard error of the slope coefficient
D75: =CONCATENATE("'= ",G57," ÷ (square root of ",J71,")") -> '= 8.76 ÷ (square root of 908.5)
D76: =CONCATENATE("'= ",G57," ÷ ",G76) -> '= 8.76 ÷ 30.14 | G76: =ROUND(SQRT(J71),2) -> 30.14
D77: =CONCATENATE("'= ",G77) -> '= 0.29 | G77: =ROUND(G57/G76,2) -> 0.29
B78: Standard error of the constant coefficient
D79: =CONCATENATE("'= ",$G$57," x square root of [(1 ÷ 10) + (",$H$7,G79," ÷ ",$J$71,")]") -> '= 8.76 x square root of [(1 ÷ 10) + (15.5² ÷ 908.5)] | G79: ²
D80: =CONCATENATE("'= ",$G$57," x square root of [(1 ÷ 10) + (",G80," ÷ ",$J$71,")]") -> '= 8.76 x square root of [(1 ÷ 10) + (240.25 ÷ 908.5)] | G80: =ROUND($H$7*$H$7,2) -> 240.25
D81: =CONCATENATE("'= ",$G$57," x square root of (",G81," + ",H81,")") -> '= 8.76 x square root of (0.1 + 0.26) | G81: =ROUND(1/10,2) -> 0.1 | H81: =ROUND(G80/J71,2) -> 0.26
D82: =CONCATENATE("'= ",$G$57," x square root of ",G82) -> '= 8.76 x square root of 0.36 | G82: =G81+H81 -> 0.36
D83: =CONCATENATE("'= ",$G$57," x ",G83) -> '= 8.76 x 0.6 | G83: =ROUND(SQRT(G82),2) -> 0.6
D84: =CONCATENATE("'= ",G84) -> '= 5.26 | G84: =ROUND(G57*G83,2) -> 5.26
B86: T-STATISTIC CALCULATIONS
B87: T-Statistic for the slope coefficient
D88: =CONCATENATE("'= ",H10," ÷ ",G77) -> '= 0.03 ÷ 0.29
D89: =CONCATENATE("'= ",G89) -> '= 0.1 | G89: =ROUND(H10/G77,2) -> 0.1
B90: T-Statistic for the constant coefficient
D91: =CONCATENATE("'= ",H11," ÷ ",G84) -> '= 18.43 ÷ 5.26
D92: =CONCATENATE("'= ",G92) -> '= 3.5 | G92: =ROUND(H11/G84,2) -> 3.5
B93: Degrees of freedom for regression coefficients
D94: '= 10 - 1 - 1
D95: '= 8

Sheet R-Squared-A (hidden)
B1: PRACTICE CALCULATING R-SQUARED (SIMPLE LINEAR REGRESSION)
B6: Case # | C6: Value of Variable X | D6: Value of Variable Y | F6: Regression Coefficients
F7: Slope Coefficient | H7: =ROUND(M18,2) -> 0.96
B8: 1 | C8: 4 | D8: 3 | F8: Constant Coefficient | H8: =ROUND(O18,2) -> 4.26 | I8: =ROUND(C8-$H$12,2) -> -10 | J8: =ROUND(I8*I8,2) -> 100 | K8: =ROUND(D8-$H$11,2) -> -14.7 | L8: =ROUND(I8*K8,2) -> 147 | P8: =RANDBETWEEN(1,30) -> 19 | Q8: =IF(P8<15,RANDBETWEEN(1,20),RANDBETWEEN(10,30)) -> 26
B9: 2 | C9: 17 | D9: 30 | I9: =ROUND(C9-$H$12,2) -> 3 | J9: =ROUND(I9*I9,2) -> 9 | K9: =ROUND(D9-$H$11,2) -> 12.3 | L9: =ROUND(I9*K9,2) -> 36.9 | P9: =RANDBETWEEN(1,30) -> 27 | Q9: =IF(P9<15,RANDBETWEEN(1,20),RANDBETWEEN(10,30)) -> 10
B10: 3 | C10: 19 | D10: 20 | F10: Means | I10: 5 | J10: 25 | K10: 2.3 | L10: 11.5 | P10: 3 | Q10: 3
B11: 4 | C11: 1 | D11: 4 | F11: Mean of Variable Y | H11: =ROUND(AVERAGE(D8:D17),2) -> 17.7 | I11: -13 | J11: 169 | K11: -13.7 | L11: 178.1 | P11: 5 | Q11: 8
B12: 5 | C12: 16 | D12: 26 | F12: Mean of Variable X | H12: =ROUND(AVERAGE(C8:C17),2) -> 14 | I12: 2 | J12: 4 | K12: 8.3 | L12: 16.6 | P12: 5 | Q12: 14
B13: 6 | C13: 2 | D13: 9 | F13: Coefficient of Determination | I13: -12 | J13: 144 | K13: -8.7 | L13: 104.4 | P13: 20 | Q13: 28
B14: 7 | C14: 15 | D14: 12 | F14: R-Squared | H14: =F63 -> 0.69 | I14: 1 | J14: 1 | K14: -5.7 | L14: -5.7 | P14: 20 | Q14: 26
B15: 8 | C15: 17 | D15: 24 | I15: 3 | J15: 9 | K15: 6.3 | L15: 18.9 | P15: 12 | Q15: 8
B16: 9 | C16: 24 | D16: 20 | F16: Need some help? | I16: 10 | J16: 100 | K16: 2.3 | L16: 23 | P16: 21 | Q16: 21
B17: 10 | C17: 25 | D17: 29 | I17: 11 | J17: 121 | K17: 11.3 | L17: 124.3 | P17: 22 | Q17: 15
J18: =SUM(J8:J17) -> 682 | L18: =SUM(L8:L17) -> 655 | M18: =ROUND(L18/J18,2) -> 0.96 | N18: =ROUND(H12*M18,2) -> 13.44 | O18: =H11-N18 -> 4.26
B19: PREDICTED VALUES CALCULATIONS
B20: Case # | C20: Value on Variable X | D20: Constant Coefficient | E20: Slope Coefficient x Value on X | G20: Predicted Value on Variable Y
B21: 1 | C21: =C8 -> 4 | D21: =$H$8 -> 4.26 | E21: =CONCATENATE($H$7," x ",C21," = ",H21) -> 0.96 x 4 = 3.84 | G21: =CONCATENATE(D21," + (",H21,") = ",I21) -> 4.26 + (3.84) = 8.1 | H21: =ROUND(C21*$H$7,2) -> 3.84 | I21: =ROUND(SUM(D21,H21),2) -> 8.1 | K21: =CONCATENATE($H$7," x ",C21," = ?") -> 0.96 x 4 = ? | M21: =CONCATENATE(D21," + (",H21,") = ?") -> 4.26 + (3.84) = ?
B22: 2 | C22: 17 | D22: =$H$8 -> 4.26 | E22: =CONCATENATE($H$7," x ",C22," = ",H22) -> 0.96 x 17 = 16.32 | G22: =CONCATENATE(D22," + (",H22,") = ",I22) -> 4.26 + (16.32) = 20.58 | H22: =ROUND(C22*$H$7,2) -> 16.32 | I22: =ROUND(SUM(D22,H22),2) -> 20.58 | K22: =CONCATENATE($H$7," x ",C22," = ?") -> 0.96 x 17 = ? | M22: =CONCATENATE(D22," + (",H22,") = ?") -> 4.26 + (16.32) = ?
B23: 3 | C23: 19 | D23: 4.26 | E23: 0.96 x 19 = 18.24 | G23: 4.26 + (18.24) = 22.5 | H23: 18.24 | I23: 22.5 | K23: 0.96 x 19 = ? | M23: 4.26 + (18.24) = ?
B24: 4 | C24: 1 | D24: 4.26 | E24: 0.96 x 1 = 0.96 | G24: 4.26 + (0.96) = 5.22 | H24: 0.96 | I24: 5.22 | K24: 0.96 x 1 = ? | M24: 4.26 + (0.96) = ?
B25: 5 | C25: 16 | D25: 4.26 | E25: 0.96 x 16 = 15.36 | G25: 4.26 + (15.36) = 19.62 | H25: 15.36 | I25: 19.62 | K25: 0.96 x 16 = ? | M25: 4.26 + (15.36) = ?
B26: 6 | C26: 2 | D26: 4.26 | E26: 0.96 x 2 = 1.92 | G26: 4.26 + (1.92) = 6.18 | H26: 1.92 | I26: 6.18 | K26: 0.96 x 2 = ? | M26: 4.26 + (1.92) = ?
B27: 7 | C27: 15 | D27: 4.26 | E27: 0.96 x 15 = 14.4 | G27: 4.26 + (14.4) = 18.66 | H27: 14.4 | I27: 18.66 | K27: 0.96 x 15 = ? | M27: 4.26 + (14.4) = ?
B28: 8 | C28: 17 | D28: 4.26 | E28: 0.96 x 17 = 16.32 | G28: 4.26 + (16.32) = 20.58 | H28: 16.32 | I28: 20.58 | K28: 0.96 x 17 = ? | M28: 4.26 + (16.32) = ?
B29: 9 | C29: 24 | D29: 4.26 | E29: 0.96 x 24 = 23.04 | G29: 4.26 + (23.04) = 27.3 | H29: 23.04 | I29: 27.3 | K29: 0.96 x 24 = ? | M29: 4.26 + (23.04) = ?
B30: 10 | C30: 25 | D30: =$H$8 -> 4.26 | E30: 0.96 x 25 = 24 | G30: 4.26 + (24) = 28.26 | H30: 24 | I30: 28.26 | K30: 0.96 x 25 = ? | M30: 4.26 + (24) = ?
B32: EXPLAINED VARIATION CALCULATIONS
B33: Case # | C33: Predicted Value on Variable Y | D33: Mean of Variable Y | E33: Predicted Value - Mean | G33: (Predicted Value - Mean)2
B34: 1 | C34: =I21 -> 8.1 | D34: =$H$11 -> 17.7 | E34: =CONCATENATE(C34," - ",D34," = ",H34) -> 8.1 - 17.7 = -9.6 | G34: =CONCATENATE(H34," x ",H34," = ",I34) -> -9.6 x -9.6 = 92.16 | H34: =ROUND(C34-D34,2) -> -9.6 | I34: =ROUND(H34*H34,2) -> 92.16 | K34: =CONCATENATE(C34," - ",D34," = ?") -> 8.1 - 17.7 = ? | M34: =CONCATENATE(H34," x ",H34," = ?") -> -9.6 x -9.6 = ?
B35: 2 | C35: =I22 -> 20.58 | D35: =$H$11 -> 17.7 | E35: =CONCATENATE(C35," - ",D35," = ",H35) -> 20.58 - 17.7 = 2.88 | G35: =CONCATENATE(H35," x ",H35," = ",I35) -> 2.88 x 2.88 = 8.29 | H35: =ROUND(C35-D35,2) -> 2.88 | I35: =ROUND(H35*H35,2) -> 8.29 | K35: =CONCATENATE(C35," - ",D35," = ?") -> 20.58 - 17.7 = ? | M35: =CONCATENATE(H35," x ",H35," = ?") -> 2.88 x 2.88 = ?
B36: 3 | C36: =I23 -> 22.5 | D36: 17.7 | E36: 22.5 - 17.7 = 4.8 | G36: 4.8 x 4.8 = 23.04 | H36: 4.8 | I36: 23.04 | K36: 22.5 - 17.7 = ? | M36: 4.8 x 4.8 = ?
B37: 4 | C37: 5.22 | D37: 17.7 | E37: 5.22 - 17.7 = -12.48 | G37: -12.48 x -12.48 = 155.75 | H37: -12.48 | I37: 155.75 | K37: 5.22 - 17.7 = ? | M37: -12.48 x -12.48 = ?
B38: 5 | C38: 19.62 | D38: 17.7 | E38: 19.62 - 17.7 = 1.92 | G38: 1.92 x 1.92 = 3.69 | H38: 1.92 | I38: 3.69 | K38: 19.62 - 17.7 = ? | M38: 1.92 x 1.92 = ?
B39: 6 | C39: 6.18 | D39: 17.7 | E39: 6.18 - 17.7 = -11.52 | G39: -11.52 x -11.52 = 132.71 | H39: -11.52 | I39: 132.71 | K39: 6.18 - 17.7 = ? | M39: -11.52 x -11.52 = ?
B40: 7 | C40: 18.66 | D40: 17.7 | E40: 18.66 - 17.7 = 0.96 | G40: 0.96 x 0.96 = 0.92 | H40: 0.96 | I40: 0.92 | K40: 18.66 - 17.7 = ? | M40: 0.96 x 0.96 = ?
B41: 8 | C41: 20.58 | D41: 17.7 | E41: 20.58 - 17.7 = 2.88 | G41: 2.88 x 2.88 = 8.29 | H41: 2.88 | I41: 8.29 | K41: 20.58 - 17.7 = ? | M41: 2.88 x 2.88 = ?
B42: 9 | C42: 27.3 | D42: 17.7 | E42: 27.3 - 17.7 = 9.6 | G42: 9.6 x 9.6 = 92.16 | H42: 9.6 | I42: 92.16 | K42: 27.3 - 17.7 = ? | M42: 9.6 x 9.6 = ?
B43: 10 | C43: 28.26 | D43: 17.7 | E43: 28.26 - 17.7 = 10.56 | G43: 10.56 x 10.56 = 111.51 | H43: 10.56 | I43: 111.51 | K43: 28.26 - 17.7 = ? | M43: 10.56 x 10.56 = ?
F44: Column Sum (Σ) | G44: =CONCATENATE("'= ",J44) -> '= 628.52 | J44: =ROUND(SUM(I34:J43),2) -> 628.52
B46: TOTAL VARIATION CALCULATIONS
B47: Case # | C47: Value on Variable Y | D47: Mean of Variable Y | E47: Value - Mean | G47: (Value - Mean)2
B48: 1 | C48: =D8 -> 3 | D48: =$H$11 -> 17.7 | E48: =CONCATENATE(C48," - ",D48," = ",H48) -> 3 - 17.7 = -14.7 | G48: =CONCATENATE(H48," x ",H48," = ",I48) -> -14.7 x -14.7 = 216.09 | H48: =ROUND(C48-D48,2) -> -14.7 | I48: =ROUND(H48*H48,2) -> 216.09 | K48: =CONCATENATE(C48," - ",D48," = ?") -> 3 - 17.7 = ? | M48: =CONCATENATE(H48," x ",H48," = ?") -> -14.7 x -14.7 = ?
B49: 2 | C49: 30 | D49: =$H$11 -> 17.7 | E49: =CONCATENATE(C49," - ",D49," = ",H49) -> 30 - 17.7 = 12.3 | G49: =CONCATENATE(H49," x ",H49," = ",I49) -> 12.3 x 12.3 = 151.29 | H49: =ROUND(C49-D49,2) -> 12.3 | I49: =ROUND(H49*H49,2) -> 151.29 | K49: =CONCATENATE(C49," - ",D49," = ?") -> 30 - 17.7 = ? | M49: =CONCATENATE(H49," x ",H49," = ?") -> 12.3 x 12.3 = ?
B50: 3 | C50: 20 | D50: 17.7 | E50: 20 - 17.7 = 2.3 | G50: 2.3 x 2.3 = 5.29 | H50: 2.3 | I50: 5.29 | K50: 20 - 17.7 = ? | M50: 2.3 x 2.3 = ?
B51: 4 | C51: 4 | D51: 17.7 | E51: 4 - 17.7 = -13.7 | G51: -13.7 x -13.7 = 187.69 | H51: -13.7 | I51: 187.69 | K51: 4 - 17.7 = ? | M51: -13.7 x -13.7 = ?
B52: 5 | C52: 26 | D52: 17.7 | E52: 26 - 17.7 = 8.3 | G52: 8.3 x 8.3 = 68.89 | H52: 8.3 | I52: 68.89 | K52: 26 - 17.7 = ? | M52: 8.3 x 8.3 = ?
B53: 6 | C53: 9 | D53: 17.7 | E53: 9 - 17.7 = -8.7 | G53: -8.7 x -8.7 = 75.69 | H53: -8.7 | I53: 75.69 | K53: 9 - 17.7 = ? | M53: -8.7 x -8.7 = ?
B54: 7 | C54: 12 | D54: 17.7 | E54: 12 - 17.7 = -5.7 | G54: -5.7 x -5.7 = 32.49 | H54: -5.7 | I54: 32.49 | K54: 12 - 17.7 = ? | M54: -5.7 x -5.7 = ?
B55: 8 | C55: 24 | D55: 17.7 | E55: 24 - 17.7 = 6.3 | G55: 6.3 x 6.3 = 39.69 | H55: 6.3 | I55: 39.69 | K55: 24 - 17.7 = ? | M55: 6.3 x 6.3 = ?
B56: 9 | C56: 20 | D56: 17.7 | E56: 20 - 17.7 = 2.3 | G56: 2.3 x 2.3 = 5.29 | H56: 2.3 | I56: 5.29 | K56: 20 - 17.7 = ? | M56: 2.3 x 2.3 = ?
B57: 10 | C57: 29 | D57: 17.7 | E57: 29 - 17.7 = 11.3 | G57: 11.3 x 11.3 = 127.69 | H57: 11.3 | I57: 127.69 | K57: 29 - 17.7 = ? | M57: 11.3 x 11.3 = ?
F58: Column Sum (Σ) | G58: =CONCATENATE("'= ",J58) -> '= 910.1 | J58: =ROUND(SUM(I48:J57),2) -> 910.1
B60: R-SQUARED CALCULATIONS
B61: R-Squared | D61: formula
D62: =CONCATENATE("'= ",J44," ÷ ",J58) -> '= 628.52 ÷ 910.1
D63: =CONCATENATE("'= ",F63) -> '= 0.69 | F63: =ROUND(J44/J58,2) -> 0.69
